bitfinex/quotes_ETHUSD_20260209
["timestamp","ask_amount","ask_price","bid_price","bid_amount"]
[1770604620671,3.362,2078.4,2078.1,0.001]
[1770604620983,4.56485365,2078.4,2078.1,0.001]
[1770604622483,0.002,2078.9,2078.3,1.06462439]
[1770604622484,1.20456145,2078.9,2078.3,1.06462439]
[1770604622643,0.002,2078.9,2078.3,0.04586049]
[1770604622849,1.12405016,2078.9,2078.1,0.001]
[1770604623157,1.12405016,2078.9,2078.1,1.20402023]
[1770604623474,0.002,2078.9,2078.3,1.06462439]
[1770604623673,0.002,2078.9,2078.3,2.31337785]
[1770604623882,0.002,2078.9,2078.3,1.06462439]
[1770604624047,0.002,2078.9,2078.1,1.20397913]
[1770604624377,0.002,2078.9,2078.2,1.20295978]
[1770604624779,0.002,2078.9,2078.1,2.26864638]
[1770604624968,0.002,2078.2,2078.1,2.26864638]
[1770604625170,0.002,2078.4,2078.1,2.26864638]
[1770604625774,0.002,2078.9,2078.2,1.06462439]
[1770604626262,1.12405016,2078.9,2078.1,0.001]
[1770604626845,1.20261689,2078.8,2078.1,1.06562439]
[1770604627050,1.20459578,2078.9,2078.1,1.06562439]
[1770604627693,2.32664594,2078.9,2078.1,1.06562439]
[1770604627997,1.12205016,2078.8,2078.1,0.001]
[1770604629181,2.3247249,2078.7,2078.1,0.001]
[1770604630153,1.20267474,2078.7,2078.1,0.001]
[1770604631498,0.002,2078.9,2078.2,1.11048488]
[1770604631652,0.002,2078.9,2078.5,1.06462439]
[1770604633605,0.002,2078.9,2078.2,0.04586049]
[1770604633606,0.002,2078.9,2078.3,2.26749958]
[1770604633769,0.002,2078.9,2078.1,0.001]
[1770604633969,0.002,2078.9,2078.2,1.20293753]
[1770604635376,1.20261689,2078.8,2078.1,0.001]
[1770604635577,2.23316955,2078.8,2078.1,0.001]
[1770604635774,1.03055266,2078.7,2078.1,0.001]
[1770604637377,1.2027326,2078.6,2078.1,0.001]
[1770604637592,1.2027326,2078.6,2078.3,0.001]
[1770604637785,2.23527094,2078.7,2078.3,0.001]
[1770604639289,1.20471828,2078.7,2078.3,0.001]
[1770604639483,0.002,2078.7,2078.3,0.001]
[1770604645908,0.002,2078.7,2078.3,1.12369617]
[1770604646792,0.002,2078.9,2078.5,1.16855666]
[1770604646996,0.002,2078.9,2078.5,1.12269617]
[1770604649027,0.002,2078.9,2078.6,1.2027326]
[1770604650034,0.002,2078.9,2078.5,2.37130187]
[1770604651031,0.002,2078.7,2078.5,2.37230187]
[1770604651433,0.002,2078.9,2078.6,1.12269617]
[1770604653036,0.002,2079.1,2078.8,1.16855666]
[1770604653212,4.56410107,2079.7,2078.9,1.12269617]
[1770604654908,1.03360457,2079.6,2078.7,1.20267474]
[1770604655109,1.03360457,2079.4,2078.5,3.791]
[1770604655321,1.03360457,2079.4,2078.5,0.001]
[1770604655522,1.03360457,2079.4,2078.5,1.20378051]
[1770604655719,1.03360457,2079.4,2078.5,0.001]
[1770604656143,1.03360457,2079.4,2078.5,1.20378459]
[1770604656440,1.03360457,2079.4,2078.5,0.001]
[1770604657213,1.03360457,2079.2,2078.5,0.001]
[1770604660049,1.20244336,2079.1,2078.5,0.001]
[1770604660218,1.20215426,2079.6,2078.8,1.12269617]
[1770604660730,1.20215426,2079.6,2078.9,0.04586049]
[1770604661943,3.362,2079.7,2079.0,1.2025012]
[1770604662136,4.56409724,2079.7,2079.0,2.32519737]
[1770604662942,5.59770181,2079.7,2078.9,1.24838887]
[1770604663113,0.002,2079.2,2078.9,1.24838887]
[1770604665534,0.002,2079.4,2079.0,1.07208037]
[1770604666127,0.002,2079.4,2079.3,0.04586049]
[1770604666948,0.002,2079.4,2079.0,1.20247075]
[1770604667640,0.002,2079.4,2079.1,1.20243764]
[1770604669251,0.002,2079.4,2079.0,1.20245628]
[1770604671874,0.002,2079.4,2079.2,0.04586049]
[1770604672088,3.362,2079.7,2079.2,0.04586049]
[1770604672235,5.12714445,2080.2,2079.5,0.04586049]
[1770604672236,1.52171613,2080.2,2079.5,0.04586049]
[1770604672440,1.04840969,2080.1,2079.0,5.63553665]
[1770604672651,1.04840969,2080.1,2079.2,0.04586049]
[1770604673055,1.04840969,2080.1,2079.3,0.04586049]
[1770604673745,2.25033276,2080.0,2079.3,0.04586049]
[1770604673944,2.25033276,2080.0,2079.3,1.24817241]
[1770604674172,2.25033276,2080.0,2079.3,0.04586049]
[1770604676269,0.002,2079.8,2079.3,0.04586049]
[1770604676966,1.05040969,2079.8,2079.2,0.001]
[1770604677169,0.002,2079.8,2079.3,0.04586049]
[1770604678168,1.20403865,2079.8,2079.2,0.04686049]
[1770604681161,1.20403865,2079.8,2079.2,0.001]
[1770604682175,1.52175798,2080.2,2079.6,1.07208037]
[1770604682345,1.52175798,2080.2,2079.7,0.04586049]
[1770604682545,0.31990842,2080.2,2079.8,0.04586049]
[1770604682779,3.36,2080.7,2079.8,2.31997509]
[1770604682978,4.80635433,2080.6,2079.8,2.31997509]
[1770604683564,4.80635433,2080.6,2079.8,1.11794086]
[1770604684478,4.80635433,2080.6,2080.1,0.04586049]
[1770604684685,4.80635433,2080.6,2079.9,0.04586049]
[1770604684686,2.24998615,2080.6,2079.9,0.04586049]
[1770604684856,2.24998615,2080.6,2079.4,0.04586049]
[1770604684857,1.04840969,2080.5,2079.4,0.04586049]
[1770604685478,1.04840969,2080.5,2079.2,0.04686049]
[1770604685678,1.04840969,2080.5,2079.2,0.001]
[1770604685871,1.04840969,2080.5,2079.3,0.04586049]
[1770604687081,1.20169198,2080.4,2079.3,0.04586049]
[1770604687268,1.04840969,2080.3,2079.2,0.04686049]
[1770604687462,1.04840969,2080.3,2079.2,0.001]
[1770604687986,1.04840969,2080.3,2079.0,0.001]
[1770604687987,10.84192064,2080.0,2079.0,0.001]
[1770604688179,1.04840969,2079.8,2078.7,0.001]
[1770604688684,1.04840969,2079.6,2078.7,0.001]
[1770604688865,1.04840969,2079.6,2079.2,0.001]
[1770604689063,1.04840969,2079.6,2078.7,0.001]
[1770604689272,1.04840969,2079.4,2078.7,0.001]
[1770604689463,1.04840969,2079.4,2079.0,0.001]
[1770604689791,1.20221207,2079.5,2079.0,0.001]
[1770604690084,1.20198086,2079.9,2079.1,0.04586049]
[1770604690287,4.56198086,2079.9,2079.1,0.04586049]
[1770604690473,1.04840969,2079.8,2079.0,0.001]
[1770604691073,1.20209645,2079.7,2079.0,0.001]
[1770604691993,2.25050614,2079.7,2079.0,0.001]
[1770604692204,1.04840969,2079.6,2079.0,0.001]
[1770604693071,1.2023277,2079.3,2078.3,0.001]
[1770604693275,1.04840969,2079.1,2078.3,0.001]
[1770604693671,1.04840969,2079.1,2078.1,0.001]
[1770604694714,3.51,2079.0,2078.1,0.001]
[1770604694875,1.04840969,2078.9,2078.1,0.001]
[1770604695273,1.20261689,2078.8,2078.1,0.001]
[1770604695701,1.20261689,2078.8,2078.2,0.04586049]
[1770604697493,1.2025012,2079.0,2078.2,1.24881989]
[1770604697724,1.2023277,2079.3,2078.5,0.04586049]
[1770604698005,4.5633277,2079.3,2078.5,0.04586049]
[1770604699385,4.5633277,2079.3,2078.5,1.086956]
[1770604701003,1.02687936,2079.2,2078.1,0.001]
[1770604701208,1.02687936,2079.2,2078.3,0.04586049]
[1770604701381,1.02687936,2079.2,2078.4,0.001]
[1770604701580,4.5633277,2079.3,2078.4,0.001]
[1770604701906,0.00831631,2399.0,2079.2,0.04586049]
[1770604701907,1.20192307,2080.0,2079.2,0.04586049]
[1770604702094,1.02687936,2079.9,2078.7,0.04586049]
[1770604702491,1.0250917,2079.9,2078.7,0.04586049]
[1770604702690,1.62687936,2079.7,2078.7,0.04586049]
[1770604702891,1.02687936,2079.6,2078.7,0.04586049]
[1770604703405,3.961,2079.7,2079.0,0.04586049]
[1770604703816,1.02687936,2079.5,2078.4,0.001]
[1770604704116,1.02687936,2079.5,2078.5,1.2027454]
[1770604704494,1.02687936,2079.5,2078.5,1.20278725]
[1770604704987,1.02687936,2079.5,2078.4,0.001]
[1770604705306,1.02687936,2079.5,2078.4,0.04686049]
[1770604705899,1.02687936,2079.3,2078.4,0.04686049]
[1770604706205,1.02687936,2079.3,2078.4,0.001]
[1770604708430,1.02687936,2079.1,2078.4,0.001]
[1770604710302,1.02687936,2078.8,2078.4,0.001]
[1770604710506,1.20255904,2078.9,2078.4,0.001]
[1770604712735,1.20254067,2079.0,2078.4,0.001]
[1770604713030,1.20254067,2079.0,2078.4,1.04209551]
[1770604713236,1.20254067,2079.0,2078.6,0.001]
[1770604714341,4.56347802,2079.1,2078.6,0.001]
[1770604716046,1.02687936,2078.7,2078.1,0.001]
[1770604717038,1.2027326,2078.6,2078.1,0.001]
[1770604717248,3.361,2078.5,2078.1,0.001]
[1770604717821,1.02687936,2078.4,2078.1,0.001]
[1770604718029,1.02687936,2078.4,2077.9,0.001]
[1770604719240,1.20290622,2078.3,2077.9,0.001]
[1770604721948,4.81162488,2078.4,2077.9,0.001]
[1770604723252,5.83850424,2078.4,2077.9,0.001]
[1770604723621,1.02687936,2078.3,2077.9,0.001]
[1770604724137,4.81162488,2078.4,2077.9,0.001]
[1770604725245,1.20284834,2078.4,2077.9,0.001]
[1770604725545,1.20284834,2078.4,2078.0,0.04586049]
[1770604725848,1.20284834,2078.4,2077.9,0.001]
[1770604726049,1.20284834,2078.4,2077.9,0.04686049]
[1770604726234,3.361,2078.5,2078.2,1.06544777]
[1770604726624,16.0428591,2079.2,2078.2,1.06544777]
[1770604726625,1.20244336,2079.1,2078.2,1.06544777]
[1770604726829,0.002,2078.9,2078.2,1.06544777]
[1770604728151,0.002,2078.9,2078.2,1.01958728]
[1770604728322,0.002,2078.9,2078.2,2.22253562]
[1770604728722,0.002,2078.9,2078.2,2.26839611]
[1770604729251,0.002,2078.9,2078.3,1.01958728]
[1770604730441,0.002,2078.9,2078.3,1.06544777]
[1770604732349,0.002,2078.9,2078.3,0.04586049]
[1770604732534,0.002,2078.9,2078.2,0.04586049]
[1770604732733,0.002,2078.9,2078.2,1.24882205]
[1770604732930,0.002,2078.9,2078.2,1.06544777]
[1770604733145,0.002,2078.9,2078.5,0.04586049]
[1770604733440,0.002,2078.9,2078.2,2.26837215]
[1770604733636,0.002,2078.9,2078.3,2.22248657]
[1770604734368,0.002,2078.9,2078.5,1.06544777]
[1770604734941,0.002,2078.9,2078.3,1.20286407]
[1770604735260,0.002,2078.9,2078.2,0.04586049]
[1770604735429,0.002,2078.9,2078.3,1.20290324]
[1770604735637,0.002,2078.9,2078.4,1.20282416]
[1770604735842,0.002,2078.9,2078.3,2.22245145]
[1770604736068,0.002,2078.9,2078.5,0.04586049]
[1770604737874,0.002,2078.9,2078.7,1.06544777]
[1770604738042,0.002,2079.1,2078.8,1.06544777]
[1770604738242,0.002,2079.1,2078.8,0.04586049]
[1770604739341,0.002,2079.1,2078.5,5.83151771]
[1770604739342,0.002,2078.7,2078.5,0.001]
[1770604739574,0.002,2078.7,2078.5,0.04686049]
[1770604739749,0.002,2079.1,2078.6,1.01958728]
[1770604740071,0.002,2079.1,2078.8,0.04586049]
[1770604740371,0.002,2078.9,2078.8,0.04586049]
[1770604740568,0.002,2079.1,2078.8,0.04586049]
[1770604741763,0.002,2079.1,2078.6,1.20270496]
[1770604741963,0.002,2079.1,2078.5,2.26919603]
[1770604742358,0.002,2079.1,2078.7,1.20267246]
[1770604742543,0.002,2079.1,2078.5,0.001]
[1770604742747,0.002,2079.1,2078.6,1.2027133]
[1770604743068,0.002,2079.1,2078.5,0.04686049]
[1770604743378,0.002,2079.1,2078.5,1.24964646]
[1770604743599,0.002,2079.1,2078.8,0.04586049]
[1770604743761,0.002,2079.1,2078.8,1.24845208]
[1770604744077,0.002,2079.1,2078.8,1.24847518]
[1770604744255,0.002,2079.1,2078.8,2.26806246]
[1770604744457,0.002,2079.1,2078.8,1.24847518]
[1770604745074,0.002,2079.1,2078.8,2.26806246]
[1770604746283,0.002,2079.1,2078.8,1.24847518]
[1770604746901,0.002,2079.1,2078.8,0.04586049]
[1770604747110,0.002,2079.1,2078.6,1.20270699]
[1770604747389,0.002,2079.1,2078.7,1.20267474]
[1770604747594,0.002,2079.1,2078.8,1.20261175]
[1770604747795,0.002,2079.1,2078.5,0.04686049]
[1770604748301,0.002,2079.1,2078.6,1.20273196]
[1770604749701,0.002,2079.1,2078.5,1.24961464]
[1770604752560,0.002,2079.1,2078.5,0.04686049]
[1770604752779,0.002,2079.1,2078.8,0.001]
[1770604752979,0.002,2078.9,2078.8,0.001]
[1770604754069,0.96528524,2078.9,2078.3,3.363]
[1770604754282,0.96528524,2078.9,2078.3,0.001]
[1770604754485,1.20261689,2078.8,2078.3,0.001]
[1770604756381,2.16788317,2078.9,2078.3,0.001]
[1770604757270,1.20459793,2078.9,2078.4,0.04586049]
[1770604758268,1.20459793,2078.9,2078.3,0.001]
[1770604758471,0.002,2078.9,2078.3,0.001]
[1770604758984,0.97078448,2078.9,2078.3,0.001]
[1770604760199,0.002,2078.9,2078.3,0.001]
[1770604760389,0.002,2078.9,2078.4,1.03197916]
[1770604762096,0.002,2078.9,2078.4,2.23479596]
[1770604762783,0.002,2078.9,2078.4,1.03197916]
[1770604762985,0.002,2078.9,2078.3,0.001]
[1770604763292,0.002,2078.9,2078.3,1.20386375]
[1770604764093,0.116688,2080.9,2079.1,0.04586049]
[1770604764289,2.17026167,2080.8,2079.6,0.98611867]
[1770604764499,0.96878448,2080.8,2079.7,0.04586049]
[1770604764996,0.96878448,2080.8,2079.7,1.03197916]
[1770604765196,0.116688,2080.9,2080.0,0.98611867]
[1770604765586,0.116688,2080.9,2080.2,0.98611867]
[1770604765908,0.04586049,2081.6,2080.4,0.98611867]
[1770604766112,0.002,2080.6,2080.4,5.54877481]
[1770604766306,0.002,2080.6,2080.5,0.98611867]
[1770604766989,1.20105693,2081.5,2080.5,0.98611867]
[1770604767316,1.20298113,2081.7,2080.5,0.98611867]
[1770604767514,2.17176561,2081.7,2080.5,0.98611867]
[1770604768224,1.20298113,2081.7,2080.7,0.98611867]
[1770604768715,1.20298113,2081.7,2080.5,1.20159584]
[1770604768919,2.17176561,2081.7,2080.5,1.20159584]
[1770604770009,2.17176561,2081.7,2080.5,2.18771451]
[1770604770381,0.97078448,2081.7,2080.5,1.20159584]
[1770604770706,1.20294845,2081.7,2080.6,0.98611867]
[1770604770880,1.20295133,2081.7,2080.6,0.98611867]
[1770604771306,0.96878448,2081.6,2080.5,1.20159584]
[1770604771507,0.96878448,2081.6,2080.5,2.18771451]
[1770604771689,0.96878448,2081.6,2080.5,0.98611867]
[1770604771888,0.96878448,2081.6,2080.4,3.361]
[1770604772092,0.96878448,2081.6,2080.4,4.56268676]
[1770604772093,1.20105693,2081.5,2080.4,4.56268676]
[1770604772414,1.2029729,2081.7,2080.5,0.98611867]
[1770604774315,0.002,2081.7,2080.6,1.20157646]
[1770604774516,0.002,2081.7,2080.7,0.98611867]
[1770604776101,0.002,2081.7,2080.7,1.03197916]
[1770604776416,0.002,2081.7,2081.2,0.98611867]
[1770604776917,0.002,2081.7,2081.4,0.98611867]
[1770604777223,0.32453262,2081.9,2081.4,0.98611867]
[1770604777623,0.15711409,2082.3,2081.5,0.98611867]
[1770604777916,1.35771668,2082.3,2081.5,0.98611867]
[1770604778120,0.15711409,2082.3,2081.5,0.98611867]
[1770604778421,1.35775027,2082.3,2081.4,0.98611867]
[1770604778591,0.002,2081.5,2081.4,0.98611867]
[1770604778791,0.002,2081.7,2081.4,0.98611867]
[1770604778994,0.15711409,2082.3,2081.4,0.98611867]
[1770604779433,0.15711409,2082.3,2081.2,1.20118783]
[1770604779434,1.35771991,2082.3,2081.2,1.20118783]
[1770604779734,1.35771991,2082.3,2081.3,0.98611867]
[1770604779893,0.15711409,2082.3,2081.3,1.03197916]
[1770604780095,0.002,2082.6,2082.1,1.03197916]
[1770604780296,0.002,2082.6,2081.9,3.358]
[1770604780706,0.002,2082.6,2082.0,0.04586049]
[1770604781296,0.002,2082.6,2082.1,0.98611867]
[1770604781818,0.002,2082.6,2082.0,0.04586049]
[1770604782716,0.002,2082.6,2082.0,2.23272936]
[1770604782905,0.002,2082.6,2082.0,1.03197916]
[1770604783309,0.002,2082.6,2082.3,0.04586049]
[1770604784133,1.53400668,2083.2,2082.3,0.98611867]
[1770604786905,1.53400668,2083.2,2082.0,2.25385091]
[1770604787118,1.53400668,2083.2,2082.0,1.05313245]
[1770604789215,1.53400668,2083.2,2082.3,0.04586049]
[1770604789412,1.53400668,2083.2,2082.3,1.05313245]
[1770604790025,1.53401109,2083.2,2082.3,1.05313245]
[1770604790206,1.53401109,2083.2,2082.3,1.00727196]
[1770604790407,0.97182429,2083.1,2082.0,1.05313245]
[1770604790608,0.97182429,2083.1,2082.0,1.00727196]
[1770604791022,0.002,2083.0,2082.0,1.00727196]
[1770604791232,1.20219203,2083.0,2082.0,1.00727196]
[1770604791939,1.20219203,2083.0,2082.0,1.05313245]
[1770604792437,0.97182429,2082.9,2081.7,1.00727196]
[1770604792638,0.97182429,2082.9,2081.5,1.00727196]
[1770604792940,0.97182429,2082.9,2081.6,1.00727196]
[1770604793310,2.17213156,2082.8,2081.6,1.00727196]
[1770604793505,2.17213156,2082.8,2081.7,1.05313245]
[1770604793736,1.20030727,2082.8,2081.7,1.05313245]
[1770604794312,1.20030727,2082.8,2082.0,0.04586049]
[1770604794520,1.20030727,2082.8,2082.0,1.05313245]
[1770604794925,0.97182429,2082.7,2081.7,1.00727196]
[1770604795425,1.20042254,2082.6,2081.8,1.05313245]
[1770604797322,4.80103515,2082.9,2081.8,1.05313245]
[1770604798962,0.97182429,2082.8,2081.5,1.00727196]
[1770604799146,0.97182429,2082.8,2081.6,1.00727196]
[1770604799346,2.1721892,2082.7,2081.6,1.00727196]
[1770604799649,1.20036491,2082.7,2081.7,1.05313245]
[1770604800435,0.97182429,2082.6,2081.2,1.00727196]
[1770604800637,0.97182429,2082.6,2081.4,1.20107282]
[1770604800960,0.97182429,2082.6,2081.6,1.05313245]
[1770604801323,1.20048019,2082.5,2081.6,1.00727196]
[1770604801519,2.17230448,2082.5,2081.3,1.00727196]
[1770604801757,2.17230448,2082.5,2081.3,1.05313245]
[1770604802063,0.97182429,2082.4,2081.3,1.00727196]
[1770604802243,0.97182429,2082.4,2081.3,1.05313245]
[1770604802640,0.97182429,2082.4,2081.3,1.00727196]
[1770604803059,1.20048019,2082.5,2081.3,1.00727196]
[1770604803241,1.20048019,2082.5,2081.6,1.00727196]
[1770604803563,4.80192076,2082.6,2081.6,1.00727196]
[1770604804166,5.77374505,2082.6,2081.6,1.00727196]
[1770604804466,5.77374505,2082.6,2081.5,0.001]
[1770604805865,5.77374505,2082.6,2081.5,1.00827196]
[1770604806365,4.80192076,2082.6,2081.7,1.05313245]
[1770604807556,2.17224683,2082.7,2081.7,1.05313245]
[1770604807943,1.20042254,2082.7,2081.7,1.00727196]
[1770604808148,0.97182429,2082.6,2081.5,0.001]
[1770604809148,0.97182429,2082.6,2081.3,0.001]
[1770604809545,0.97182429,2082.4,2081.3,0.001]
[1770604809745,1.20048019,2082.5,2081.3,0.001]
[1770604809746,0.97182429,2082.2,2081.3,0.001]
[1770604810254,0.97182429,2082.2,2080.9,0.001]
[1770604810456,0.97182429,2082.0,2080.9,0.001]
[1770604811450,1.20076849,2082.0,2081.4,1.00727196]
[1770604811662,4.80165115,2082.7,2081.6,1.00727196]
[1770604811854,0.97182429,2082.6,2081.3,1.05313245]
[1770604812055,1.20030727,2082.8,2081.6,1.05313245]
[1770604812253,1.20030727,2082.8,2081.9,1.05313245]
[1770604813182,0.002,2082.9,2082.3,1.05313245]
[1770604813366,1.52200525,2083.4,2082.6,1.05313245]
[1770604813567,1.52200525,2083.4,2082.7,1.20036491]
[1770604813568,1.52196737,2083.4,2082.7,1.20036491]
[1770604813767,1.52196737,2083.4,2082.6,1.05313245]
[1770604813960,1.52196737,2083.4,2082.6,1.00727196]
[1770604814160,1.5219757,2083.4,2082.8,0.04586049]
[1770604814975,1.5219757,2083.4,2082.6,1.00727196]
[1770604815154,1.5219757,2083.4,2082.3,0.9179332]
[1770604815361,1.5219757,2083.4,2082.5,0.04586049]
[1770604816078,1.5219757,2083.4,2082.5,2.16426929]
[1770604816462,1.5219757,2083.4,2082.6,0.9179332]
[1770604817647,1.5219757,2083.4,2082.5,0.04586049]
[1770604817882,1.5219757,2083.4,2082.3,0.96506338]
[1770604818276,1.5219757,2083.4,2082.2,0.04586049]
[1770604818474,0.002,2083.2,2082.0,0.96506338]
[1770604818979,0.002,2083.2,2082.2,0.04586049]
[1770604819284,0.002,2083.2,2082.2,1.01092387]
[1770604822074,0.91615441,2083.1,2081.9,0.96506338]
[1770604822285,0.002,2083.2,2082.2,0.04586049]
[1770604825299,0.002,2083.2,2082.5,1.01092387]
[1770604825607,0.002,2083.2,2082.5,0.96506338]
[1770604826061,0.002,2083.2,2082.6,0.04586049]
[1770604827372,0.002,2083.2,2082.6,1.01092387]
[1770604828473,0.002,2083.2,2082.9,0.04586049]
[1770604828770,0.002,2083.2,2082.7,0.96506338]
[1770604829370,0.002,2083.2,2082.6,1.24627555]
[1770604829371,0.32400047,2083.4,2082.9,1.01092387]
[1770604829560,1.52396899,2083.4,2082.9,0.96506338]
[1770604830081,1.52396899,2083.4,2082.6,2.21134301]
[1770604830393,1.52396899,2083.4,2082.5,4.80188723]
[1770604830394,1.52396899,2083.4,2082.4,0.96506338]
[1770604830693,2.4401234,2083.4,2082.1,2.16576402]
[1770604830856,2.4401234,2083.4,2082.2,0.04586049]
[1770604831262,2.4401234,2083.4,2082.1,0.96506338]
[1770604831263,0.91615441,2083.3,2082.1,0.96506338]
[1770604831497,0.91615441,2083.3,2082.4,0.001]
[1770604831699,0.002,2083.0,2082.4,0.001]
[1770604834089,0.002,2083.0,2082.5,1.01092387]
[1770604834588,4.80008869,2083.3,2082.5,1.01092387]
[1770604834973,4.80008869,2083.3,2082.5,2.21139772]
[1770604835173,4.80008869,2083.3,2082.5,1.01092387]
[1770604835371,0.32200047,2083.4,2082.5,2.21139999]
[1770604835566,1.2000192,2083.3,2082.8,0.04586049]
[1770604836671,1.522006,2083.4,2082.7,2.16539566]
[1770604836873,0.32200047,2083.4,2082.9,0.96506338]
[1770604838467,0.0029536,2084.1,2083.2,0.96506338]
[1770604838775,5.11972581,2084.4,2083.5,0.96506338]
[1770604838982,1.1994689,2084.3,2083.5,0.96506338]
[1770604839506,1.52144798,2084.4,2083.7,0.04586049]
[1770604839702,1.52144798,2084.4,2083.7,0.96506338]
[1770604841485,1.52144798,2084.4,2083.4,0.96506338]
[1770604841699,1.52144798,2084.4,2083.4,1.01092387]
[1770604841897,1.52144798,2084.4,2083.4,2.21085598]
[1770604843282,1.52144798,2084.4,2083.5,0.96506338]
[1770604843601,1.52144798,2084.4,2083.4,0.04586049]
[1770604844006,1.52144798,2084.4,2083.2,0.96506338]
[1770604844180,2.43760239,2084.4,2083.2,2.16513837]
[1770604844885,2.43760239,2084.4,2083.3,1.20001669]
[1770604845086,0.002,2084.2,2083.2,2.16509966]
[1770604845698,0.002,2084.2,2083.4,0.04586049]
[1770604845896,0.002,2084.2,2083.4,1.10066916]
[1770604847517,0.002,2084.2,2083.5,0.04586049]
[1770604847805,0.002,2084.2,2083.6,1.10066916]
[1770604848616,0.002,2084.2,2083.9,1.10066916]
[1770604848913,1.19920031,2084.8,2084.1,0.04586049]
[1770604849689,1.19904076,2085.0,2084.1,1.24541741]
[1770604849915,1.19904076,2085.0,2084.2,1.05480867]
[1770604850212,1.3382107,2085.1,2084.2,1.05480867]
[1770604851015,1.3382107,2085.1,2084.2,1.10066916]
[1770604851721,1.3382107,2085.1,2084.2,2.3001506]
[1770604852021,1.3382107,2085.1,2084.3,1.05480867]
[1770604852197,1.3382107,2085.1,2084.2,1.19949813]
[1770604852517,6.04349441,2086.7,2084.2,1.19949813]
[1770604852518,0.32230668,2085.6,2084.6,1.05480867]
[1770604852722,1.52101314,2085.6,2085.0,1.05480867]
[1770604853023,0.32230668,2085.6,2085.1,1.10066916]
[1770604853315,1.19829362,2086.3,2085.4,0.04586049]
[1770604853917,0.97753488,2086.4,2085.0,3.353]
[1770604854090,0.97753488,2086.4,2085.1,1.24481596]
[1770604854290,0.97753488,2086.4,2085.1,2.29960477]
[1770604854487,4.79317451,2086.6,2085.4,0.04586049]
[1770604854722,4.79317451,2086.6,2085.4,1.10066916]
[1770604855108,4.79317451,2086.6,2085.4,2.29946205]
[1770604855419,4.79317451,2086.6,2085.4,1.1988041]
[1770604855793,1.19812134,2086.7,2085.4,2.29947326]
[1770604855993,1.19812134,2086.7,2085.7,0.04586049]
[1770604856511,1.19812134,2086.7,2085.7,1.05480867]
[1770604856908,2.17565622,2086.7,2085.4,2.25361277]
[1770604857313,2.17565622,2086.7,2085.5,1.10066916]
[1770604857687,0.97753488,2086.6,2085.3,1.19882493]
[1770604857904,1.19817876,2086.5,2085.3,1.19882493]
[1770604858223,0.97753488,2086.4,2084.9,2.25385579]
[1770604858394,0.97753488,2086.4,2085.0,1.19902862]
[1770604858720,0.97953488,2086.4,2085.0,1.19902862]
[1770604859025,0.97953488,2086.4,2085.1,1.2448348]
[1770604859400,0.97953488,2086.4,2085.2,2.25372779]
[1770604859593,0.97953488,2086.4,2085.3,1.05480867]
[1770604859594,0.002,2086.4,2085.3,1.05480867]
[1770604859794,0.002,2086.4,2085.2,1.19891912]
[1770604859996,0.002,2086.4,2085.2,2.25372779]
[1770604860336,0.97953488,2086.4,2084.9,1.05480867]
[1770604860630,0.002,2086.4,2085.4,1.10066916]
[1770604860791,4.79070639,2087.5,2086.3,0.04586049]
[1770604860996,4.79087816,2087.6,2086.3,1.10066916]
[1770604861224,1.35228891,2087.7,2086.6,1.10066916]
[1770604861596,1.35228891,2087.7,2086.6,1.05480867]
[1770604862295,1.35228891,2087.7,2086.8,1.05480867]
[1770604862544,1.35228891,2087.7,2086.6,2.25292993]
[1770604862693,1.35228891,2087.7,2086.6,1.05480867]
[1770604863201,1.35228891,2087.7,2086.6,2.25291583]
[1770604863394,1.35228891,2087.7,2086.6,2.25291829]
[1770604863603,1.35228891,2087.7,2086.6,1.05480867]
[1770604863831,0.97753488,2087.6,2086.3,1.05480867]
[1770604864212,1.19760479,2087.5,2086.3,1.05480867]
[1770604864395,1.19760479,2087.5,2085.9,1.05480867]
[1770604864396,2.17513967,2087.5,2085.9,1.05480867]
[1770604864820,0.97753488,2087.4,2085.9,2.29915729]
[1770604865024,0.97753488,2087.4,2086.0,1.19846522]
[1770604865223,0.97753488,2087.4,2086.0,2.25323738]
[1770604865424,4.32853488,2087.4,2086.1,1.1984018]
[1770604865694,0.97753488,2087.4,2086.1,1.19840417]
[1770604865908,4.32753488,2087.4,2086.1,1.19837294]
[1770604866125,4.32753488,2087.4,2086.0,1.05480867]
[1770604866319,1.19771954,2087.3,2086.0,2.25327078]
[1770604866825,0.97753488,2087.2,2085.9,1.24434658]
[1770604867027,0.97753488,2087.2,2085.9,2.29915525]
[1770604867231,1.19771954,2087.3,2086.2,1.10066916]
[1770604867524,1.19771954,2087.3,2086.2,1.05480867]
[1770604867699,1.19771954,2087.3,2085.9,2.29915525]
[1770604868550,1.19754742,2087.6,2086.5,1.10066916]
[1770604868841,1.19754742,2087.6,2086.6,1.10066916]
[1770604868997,0.15478068,2087.7,2086.9,1.10066916]
[1770604869436,8.13837804,2088.4,2086.9,1.10066916]
[1770604869437,1.19685944,2088.8,2087.5,1.10066916]
[1770604869594,1.19685944,2088.8,2087.5,1.05480867]
[1770604869595,0.32684261,2088.7,2087.5,1.05480867]
[1770604869796,0.32684261,2088.7,2087.9,0.04586049]
[1770604869996,0.32684261,2088.7,2088.0,1.05480867]
[1770604870240,1.33585516,2089.2,2088.2,1.10066916]
[1770604870462,0.32684261,2089.0,2088.3,1.197146]
[1770604870730,0.3235925,2089.5,2088.3,1.197146]
[1770604870731,0.1631593,2094.2,2092.2,1.05480867]
[1770604870934,0.1631593,2094.2,2093.3,1.05480867]
[1770604871097,0.00357385,2094.8,2094.5,9.96840585]
[1770604871304,0.29166037,2094.7,2094.2,0.3967296]
[1770604871519,0.97753488,2096.2,2094.4,9.96840585]
[1770604871828,0.04586049,2095.2,2094.4,9.96840585]
[1770604872034,0.04586049,2094.8,2094.0,1.05480867]
[1770604872201,0.04586049,2094.5,2093.1,9.96840585]
[1770604872400,0.04586049,2094.5,2093.5,9.96840585]
[1770604872729,0.04586049,2093.6,2092.8,9.96840585]
[1770604872930,0.04586049,2095.0,2092.8,9.96840585]
[1770604872931,1.19306529,2095.5,2093.3,10.54835493]
[1770604873096,0.04586049,2095.9,2093.8,1.05480867]
[1770604873304,0.04586049,2095.4,2094.1,10.175847]
[1770604873540,1.02339537,2096.4,2094.0,1.05480867]
[1770604873695,0.97753488,2096.3,2094.0,1.05480867]